bitfinex/quotes_BTCUSD_20250320
["timestamp","ask_amount","ask_price","bid_price","bid_amount"]
[1742428801012,0.01316861,87049.0,87029.0,0.13153975]
[1742428801206,0.01316861,87049.0,87029.0,0.13353975]
[1742428801413,0.01316861,87049.0,87029.0,0.13553975]
[1742428801606,0.01316861,87049.0,87029.0,0.13153975]
[1742428802044,0.01816861,87049.0,87029.0,0.13153975]
[1742428802445,0.01616861,87049.0,87029.0,0.13153975]
[1742428802622,0.02152166,87048.0,87029.0,0.13153975]
[1742428802835,0.02152166,87048.0,87030.0,0.081]
[1742428803036,0.02152166,87048.0,87031.0,0.0472]
[1742428803245,0.02152166,87048.0,87032.0,0.0816]
[1742428803444,0.02152166,87048.0,87033.0,0.0499]
[1742428803706,0.02152166,87047.0,87029.0,0.00033975]
[1742428803847,0.02152166,87047.0,87038.0,0.1315]
[1742428804062,0.02152166,87047.0,87040.0,0.1315]
[1742428804239,0.02152166,87047.0,87041.0,0.0797]
[1742428804867,0.02152166,87046.0,87041.0,0.0797]
[1742428805071,0.02152166,87046.0,87033.0,0.02349602]
[1742428805072,0.4092,87077.0,87043.0,0.1291]
[1742428805330,0.01227953,87078.0,87045.0,0.0496]
[1742428805514,4e-07,87061.0,87060.0,0.183781]
[1742428805738,4e-07,87061.0,87060.0,0.94506203]
[1742428805939,4e-07,87061.0,87060.0,0.825487]
[1742428806369,4e-07,87061.0,87060.0,0.94506203]
[1742428806749,6e-07,87068.0,87067.0,0.275251]
[1742428806965,6e-07,87068.0,87067.0,0.38982603]
[1742428807837,0.00030926,87079.0,87072.0,0.011484]
[1742428808064,0.00030926,87079.0,87075.0,0.011484]
[1742428808274,0.00030926,87079.0,87078.0,0.011483]
[1742428808698,0.09896861,87084.0,87083.0,0.195215]
[1742428808925,0.08476861,87084.0,87083.0,0.271215]
[1742428809169,0.08476861,87084.0,87083.0,0.076]
[1742428809411,0.08476861,87084.0,87083.0,0.259732]
[1742428809822,0.011485,87066.0,87060.0,0.0001229]
[1742428810027,0.08476861,87084.0,87077.0,0.195227]
[1742428810232,0.08476861,87084.0,87083.0,0.186732]
[1742428811124,0.012171,87096.0,87093.0,0.18371]
[1742428811326,0.012171,87096.0,87092.0,0.13376]
[1742428811551,0.012171,87096.0,87083.0,0.188732]
[1742428811552,0.011481,87093.0,87083.0,0.002]
[1742428811803,0.195186,87096.0,87086.0,0.183725]
[1742428812087,0.011481,87097.0,87088.0,0.183721]
[1742428812304,0.195182,87098.0,87088.0,0.1838439]
[1742428812522,0.195186,87096.0,87089.0,0.18372]
[1742428812754,0.011482,87089.0,87088.0,0.0001229]
[1742428812981,0.195186,87096.0,87088.0,0.0001229]
[1742428813214,0.183684,87106.0,87094.0,0.183708]
[1742428813436,0.01148,87102.0,87096.0,0.183704]
[1742428813663,0.74211,87112.0,87097.0,0.183703]
[1742428814356,0.1838316,87117.0,87097.0,0.183703]
[1742428814357,0.0003426,87109.0,87108.0,0.19516]
[1742428814573,0.0003426,87109.0,87108.0,0.33002789]
[1742428814797,0.0003426,87109.0,87108.0,0.34342085]
[1742428815661,0.0003426,87109.0,87108.0,0.46299588]
[1742428815915,0.0003426,87109.0,87108.0,0.87919588]
[1742428816339,0.0003426,87109.0,87108.0,0.88519588]
[1742428816762,0.0001696,87117.0,87116.0,0.20968185]
[1742428818075,0.00058314,87117.0,87116.0,0.21468185]
[1742428818331,0.00058314,87117.0,87116.0,0.21868185]
[1742428818577,0.00058314,87117.0,87109.0,0.230876]
[1742428818578,0.01148,87101.0,87092.0,0.183713]
[1742428818791,0.1375655,87102.0,87089.0,0.183719]
[1742428819002,0.03166473,87117.0,87101.0,0.01148]
[1742428819003,0.011479,87110.0,87101.0,0.01148]
[1742428819211,0.02654714,87101.0,87100.0,0.011481]
[1742428819435,0.02127695,87101.0,87100.0,0.195177]
[1742428819649,0.02127695,87101.0,87100.0,0.20971785]
[1742428819892,0.02127695,87101.0,87100.0,0.34339785]
[1742428820107,0.00058314,87117.0,87116.0,0.183663]
[1742428820321,0.00058314,87117.0,87116.0,0.13368]
[1742428820535,0.01206114,87117.0,87116.0,0.13368]
[1742428820745,0.00585376,87117.0,87116.0,0.13368]
[1742428821589,0.00585376,87117.0,87116.0,0.149158]
[1742428821800,0.00585376,87117.0,87116.0,0.15530576]
[1742428822012,0.00058314,87117.0,87116.0,0.15530576]
[1742428823007,0.00049367,87117.0,87116.0,0.15530576]
[1742428824605,0.00053367,87117.0,87116.0,0.15530576]
[1742428825356,0.00053367,87117.0,87116.0,0.33896876]
[1742428825557,0.00053367,87117.0,87116.0,0.337821]
[1742428826335,0.00053367,87117.0,87116.0,0.326343]
[1742428826541,0.00053367,87117.0,87116.0,0.337821]
[1742428826761,0.00053367,87117.0,87116.0,0.337781]
[1742428827409,0.183631,87131.0,87125.0,0.183644]
[1742428827825,0.00527312,87130.0,87125.0,0.183644]
[1742428828239,0.011477,87128.0,87122.0,0.183648]
[1742428828667,0.00527304,87127.0,87125.0,0.002]
[1742428829076,0.00527302,87126.0,87124.0,0.183644]
[1742428829284,0.011477,87130.0,87125.0,0.001]
[1742428829495,0.18890808,87129.0,87125.0,0.001]
[1742428829706,0.011478,87123.0,87116.0,0.0001229]
[1742428829915,0.195156,87109.0,87108.0,2e-07]
[1742428830124,0.183749,87075.0,87062.0,0.183776]
[1742428830366,0.183749,87075.0,87065.0,0.10324194]
[1742428830367,0.183768,87066.0,87065.0,0.10324194]
[1742428830598,0.00519555,87066.0,87056.0,0.011486]
[1742428830810,0.00519555,87066.0,87065.0,0.195255]
[1742428831035,0.01228411,87080.0,87078.0,0.183741]
[1742428831251,0.011483,87080.0,87070.0,0.13432]
[1742428831476,0.011483,87085.0,87070.0,0.13432]
[1742428831477,0.00539644,87079.0,87076.0,0.183745]
[1742428831689,4.131e-05,87086.0,87077.0,0.011484]
[1742428831921,0.195221,87082.0,87078.0,0.13428]
[1742428832155,0.011483,87079.0,87078.0,0.13428]
[1742428832369,0.01675633,87079.0,87078.0,0.13428]
[1742428833040,0.01675633,87079.0,87078.0,0.14028]
[1742428833243,0.00527333,87079.0,87078.0,0.324023]
[1742428833468,0.01148,87101.0,87078.0,0.335506]
[1742428833684,0.183701,87098.0,87085.0,0.195211]
[1742428833951,0.19517,87104.0,87085.0,0.195211]
[1742428834191,0.01148,87103.0,87085.0,0.195211]
[1742428834414,1.31e-06,87086.0,87085.0,0.1963592]
[1742428834859,0.011478,87123.0,87112.0,0.183671]
[1742428835096,0.19515,87112.0,87105.0,0.13416]
[1742428835360,0.011479,87109.0,87105.0,0.13416]
[1742428835781,0.02140938,87111.0,87105.0,0.317844]
[1742428835996,0.02140938,87111.0,87110.0,0.011479]
[1742428836467,0.195114,87129.0,87118.0,0.011478]
[1742428836672,0.195114,87129.0,87123.0,0.182647]
[1742428837325,0.02140972,87128.0,87123.0,0.182647]
[1742428837546,0.02140972,87128.0,87125.0,0.183642]
[1742428837771,0.02140972,87128.0,87124.0,0.183645]
[1742428838099,0.02140972,87128.0,87126.0,0.18364]
[1742428838301,0.02140972,87128.0,87127.0,0.011477]
[1742428838511,0.0001697,87135.0,87128.0,0.183637]
[1742428838712,0.0001697,87135.0,87119.0,0.1358]
[1742428838713,0.011478,87120.0,87119.0,0.1358]
[1742428838820,0.011477,87126.0,87120.0,0.183654]
[1742428839020,0.011479,87114.0,87105.0,0.00041354]
[1742428839254,0.011479,87113.0,87106.0,0.13588]
[1742428839461,0.195139,87117.0,87109.0,0.183676]
[1742428839671,0.011478,87116.0,87109.0,0.183676]
[1742428839867,0.183665,87115.0,87107.0,0.183682]
[1742428840095,0.195148,87113.0,87106.0,0.13588]
[1742428840361,0.195144,87115.0,87107.0,0.183682]
[1742428840506,0.183657,87119.0,87105.0,0.00641354]
[1742428840507,0.01148,87106.0,87105.0,0.00641354]
[1742428840721,0.195155,87110.0,87105.0,0.14225354]
[1742428840925,0.02142265,87106.0,87105.0,0.14225354]
[1742428842473,0.20510665,87106.0,87105.0,0.14825354]
[1742428842689,0.21658665,87106.0,87105.0,0.01241354]
[1742428843114,0.21658665,87106.0,87105.0,0.00041354]
[1742428844137,0.21658665,87106.0,87105.0,0.00441354]
[1742428844580,0.21658665,87106.0,87105.0,0.01041354]
[1742428845233,0.21658665,87106.0,87105.0,0.00441354]
[1742428845440,0.21658665,87106.0,87105.0,0.00841354]
[1742428846698,0.02142265,87106.0,87105.0,0.00841354]
[1742428848032,0.01698194,87106.0,87105.0,0.01989354]
[1742428848243,0.01698194,87106.0,87105.0,0.00841354]
[1742428849305,0.01698194,87106.0,87105.0,0.01989354]
[1742428849516,0.01698194,87106.0,87105.0,0.00841354]
[1742428849716,0.01698194,87106.0,87105.0,0.14393354]
[1742428849930,0.02846194,87106.0,87105.0,0.00875274]
[1742428850126,0.02863154,87106.0,87105.0,0.00875274]
[1742428850954,0.01715154,87106.0,87105.0,0.19243874]
[1742428851153,0.20083554,87106.0,87105.0,0.00875274]
[1742428851381,0.21231554,87106.0,87105.0,0.00875274]
[1742428852170,0.01715154,87106.0,87105.0,0.00875274]
[1742428852785,0.20083554,87106.0,87105.0,0.00875274]
[1742428852982,0.21231554,87106.0,87105.0,0.00875274]
[1742428853223,0.01715154,87106.0,87105.0,0.00875274]
[1742428853436,0.01715154,87106.0,87105.0,0.19243874]
[1742428853642,0.02863154,87106.0,87105.0,0.00875274]
[1742428854404,0.01715154,87106.0,87105.0,0.00875274]
[1742428854607,0.20083554,87106.0,87105.0,0.00875274]
[1742428854822,0.21231554,87106.0,87105.0,0.00875274]
[1742428855024,0.1953336,87106.0,87105.0,0.00875274]
[1742428855867,0.1953336,87106.0,87105.0,0.00475274]
[1742428856275,0.22965615,87106.0,87105.0,0.00475274]
[1742428856716,0.22965615,87106.0,87105.0,0.00875274]
[1742428857136,0.22965615,87106.0,87105.0,0.00475274]
[1742428857339,0.1953336,87106.0,87105.0,0.00475274]
[1742428857907,0.1953336,87106.0,87105.0,0.00075274]
[1742428858145,0.1953336,87106.0,87105.0,0.00675274]
[1742428858535,0.1953336,87106.0,87105.0,0.00375274]
[1742428858743,0.1953736,87106.0,87105.0,0.00375274]
[1742428858950,0.1953736,87106.0,87105.0,0.00675274]
[1742428859599,0.0002096,87106.0,87105.0,0.00675274]
[1742428860446,0.02167815,87106.0,87105.0,0.00675274]
[1742428861717,0.03315815,87106.0,87105.0,0.00675274]
[1742428862810,0.03315815,87106.0,87050.0,0.84418102]
[1742428862811,0.195242,87071.0,87055.0,0.18379]
[1742428863053,0.177384,87073.0,87067.0,0.183764]
[1742428863269,0.195242,87071.0,87053.0,0.011487]
[1742428863495,0.14886402,87080.0,87059.0,0.1007278]
[1742428863718,0.011483,87080.0,87073.0,0.183751]
[1742428863940,0.20523379,87079.0,87072.0,0.183755]
[1742428864180,0.20523379,87079.0,87067.0,0.183765]
[1742428864181,0.195234,87075.0,87071.0,0.183757]
[1742428864465,0.183745,87078.0,87072.0,0.183754]
[1742428864718,0.195951,87075.0,87070.0,0.19022114]
[1742428865062,0.195234,87075.0,87070.0,0.18422114]
[1742428865323,0.21672979,87074.0,87072.0,0.004]
[1742428865540,0.011484,87073.0,87072.0,0.004]
[1742428866278,0.011484,87071.0,87070.0,0.00046214]
[1742428866750,0.011484,87073.0,87070.0,0.00046214]
[1742428867016,0.13588,87092.0,87083.0,0.183732]
[1742428867254,0.01214081,87078.0,87075.0,0.183749]
[1742428867491,0.00504,87114.0,87073.0,0.1358]
[1742428867667,0.558121,87096.0,87086.0,0.183726]
[1742428867931,0.011482,87091.0,87084.0,0.18373]
[1742428868164,0.011482,87091.0,87075.0,0.183748]
[1742428868165,0.183724,87087.0,87080.0,0.183738]
[1742428868332,0.183724,87087.0,87081.0,0.183735]
[1742428868594,0.001,87092.0,87091.0,0.183715]
[1742428868789,0.001,87092.0,87091.0,0.630957]
[1742428869821,0.01148,87108.0,87098.0,0.011481]
[1742428870043,0.01148,87108.0,87096.0,0.183703]
[1742428870044,4e-05,87114.0,87110.0,0.183675]
[1742428870251,0.183709,87114.0,87111.0,0.1358]
[1742428870500,0.011481,87100.0,87099.0,0.3]
[1742428870738,0.195179,87100.0,87099.0,0.13576]
[1742428870950,0.195171,87103.0,87099.0,0.13576]
[1742428871163,0.195174,87101.0,87099.0,0.13588294]
[1742428871398,0.18919228,87101.0,87099.0,0.00012294]
[1742428871639,0.18919228,87101.0,87100.0,0.13572]
[1742428871867,0.011481,87100.0,87099.0,0.00012294]
[1742428872114,0.011481,87100.0,87099.0,0.00512294]
[1742428872539,0.03295199,87100.0,87099.0,0.00512294]
[1742428872767,0.03295199,87100.0,87099.0,0.00012294]
[1742428873257,0.02147099,87100.0,87099.0,0.00512294]
[1742428873552,0.21664799,87100.0,87099.0,0.00012294]
[1742428873813,0.21664799,87100.0,87099.0,0.00312294]
[1742428875095,0.21664799,87100.0,87099.0,0.00612294]
[1742428875657,0.21664799,87100.0,87099.0,0.00312294]
[1742428876244,0.21664799,87100.0,87099.0,0.00012294]
[1742428876697,0.21664799,87100.0,87099.0,0.00112294]
[1742428876912,0.21664799,87100.0,87099.0,0.00312294]
[1742428876913,0.21668799,87100.0,87099.0,0.00312294]
[1742428877368,0.21668799,87100.0,87099.0,0.00112294]
[1742428878055,0.21668799,87100.0,87099.0,0.00012294]
[1742428878502,0.21668799,87100.0,87099.0,0.00112294]
[1742428879612,0.21668799,87100.0,87099.0,0.00412294]
[1742428880045,0.21668799,87100.0,87099.0,0.00112294]
[1742428880269,0.62588799,87100.0,87099.0,0.00212294]
[1742428880497,0.62588799,87100.0,87099.0,0.00012294]
[1742428883703,0.604417,87100.0,87099.0,0.00012294]
[1742428887862,0.604417,87100.0,87099.0,0.00046214]
[1742428893419,0.195217,87100.0,87099.0,0.00046214]
[1742428895169,0.195217,87100.0,87099.0,1.4e-07]
[1742428895366,0.195235,87074.0,87073.0,0.0003392]
[1742428895571,0.195235,87074.0,87073.0,0.00046237]
[1742428897009,0.195235,87074.0,87073.0,0.00246237]
[1742428897910,0.195235,87074.0,87073.0,0.00046237]
[1742428898318,0.195235,87074.0,87073.0,0.00146237]
[1742428899764,0.195235,87074.0,87073.0,0.00046237]
[1742428900744,0.195235,87074.0,87073.0,0.00146237]
[1742428900979,0.195235,87074.0,87073.0,0.00046237]
[1742428901534,0.195235,87074.0,87073.0,0.00146237]
[1742428901847,0.195235,87074.0,87073.0,0.00246237]
[1742428907150,0.195235,87074.0,87070.0,5.7e-07]
[1742428907151,0.50978285,87071.0,87070.0,5.7e-07]
[1742428907351,0.011486,87059.0,87046.0,0.082]
[1742428907560,0.011486,87062.0,87049.0,0.011487]
[1742428907770,0.011486,87062.0,87046.0,0.093488]
[1742428907771,0.011486,87058.0,87046.0,0.09352931]
[1742428907980,0.011486,87058.0,87052.0,0.183796]
[1742428908154,0.011486,87058.0,87046.0,0.08204131]
[1742428908155,0.183791,87056.0,87050.0,0.1838]
[1742428908375,0.195277,87056.0,87051.0,0.183798]
[1742428908598,0.011485,87069.0,87056.0,0.011486]
[1742428908799,0.011484,87073.0,87066.0,0.183766]
[1742428909004,0.011484,87072.0,87066.0,0.183766]
[1742428909180,0.195248,87069.0,87062.0,0.183777]
[1742428909362,0.183767,87067.0,87062.0,0.183777]
[1742428909557,0.195252,87067.0,87062.0,0.183777]
[1742428909763,0.011485,87068.0,87062.0,0.183775]
[1742428910183,0.01216675,87072.0,87069.0,0.266461]
[1742428910446,0.011483,87081.0,87070.0,0.18376]
[1742428910775,0.011484,87077.0,87070.0,0.18376]
[1742428911020,0.011484,87076.0,87070.0,0.18376]
[1742428911267,0.011484,87076.0,87069.0,0.0827]
[1742428911268,0.03395418,87087.0,87069.0,0.0827]
[1742428911523,0.011481,87093.0,87083.0,0.183732]
[1742428911752,0.1952,87090.0,87083.0,0.183732]
[1742428911986,0.1952,87090.0,87079.0,0.134]
[1742428911987,0.183726,87086.0,87079.0,0.134]
[1742428912218,0.011483,87085.0,87079.0,0.134]
[1742428912455,0.011483,87085.0,87079.0,0.317739]
[1742428912708,0.011483,87085.0,87079.0,0.134]
[1742428912709,0.011483,87084.0,87079.0,0.134]
[1742428912924,0.01209881,87085.0,87080.0,0.183739]
[1742428913144,0.011483,87084.0,87079.0,0.134]
[1742428913559,0.195215,87084.0,87079.0,0.134]
[1742428913762,0.011483,87084.0,87079.0,0.322739]
[1742428914303,0.011483,87082.0,87079.0,0.134]
[1742428914577,0.01211337,87085.0,87084.0,0.18373]
[1742428914848,0.01211337,87085.0,87079.0,0.14]
[1742428914849,0.011483,87080.0,87079.0,0.006]
[1742428915088,0.011483,87080.0,87079.0,0.011]
[1742428915350,0.011483,87080.0,87079.0,0.006]
[1742428915351,0.03295303,87080.0,87079.0,0.006]
[1742428915595,0.03295303,87080.0,87079.0,0.012]
[1742428915817,0.03295303,87080.0,87079.0,0.006]
[1742428916225,0.02147003,87080.0,87079.0,0.012]
[1742428916663,0.02147003,87080.0,87079.0,0.006]
[1742428916866,0.02147003,87080.0,87074.0,0.183751]
[1742428917070,0.02147003,87080.0,87079.0,0.009]
[1742428917277,0.03295303,87080.0,87079.0,0.009]
[1742428917489,0.03295303,87080.0,87079.0,0.0045]
[1742428917693,0.03295303,87080.0,87079.0,0.0095]
[1742428918353,0.03295303,87080.0,87079.0,0.0135]
[1742428918557,0.03295303,87080.0,87079.0,0.0045]
[1742428918762,0.02147003,87080.0,87079.0,0.0045]
[1742428918984,0.02147003,87080.0,87079.0,0.188241]
[1742428919624,0.02147003,87080.0,87079.0,0.0045]
[1742428919828,0.02147003,87080.0,87079.0,0.183741]
[1742428920062,0.01196651,87085.0,87084.0,0.18373]
[1742428920188,0.01196651,87085.0,87084.0,0.13424]
[1742428920389,0.195204,87088.0,87084.0,0.13424]
[1742428920793,0.195208,87087.0,87084.0,0.13424]
[1742428921244,0.011483,87085.0,87084.0,0.13424]
[1742428921416,0.011483,87085.0,87084.0,0.13924]
[1742428921633,0.02147246,87086.0,87084.0,0.13424]
[1742428921841,0.02147246,87086.0,87085.0,0.195211]
[1742428922045,0.02147246,87086.0,87085.0,0.61915923]
[1742428922223,0.02147246,87086.0,87085.0,0.618011]
[1742428922595,2e-07,87106.0,87105.0,0.617966]
[1742428922797,2e-07,87106.0,87105.0,1.28798103]
[1742428923911,2e-07,87106.0,87105.0,1.30252188]
[1742428924149,0.0001697,87135.0,87113.0,0.495148]
[1742428924393,0.0001639,87114.0,87113.0,0.75206388]
[1742428924753,0.0001639,87114.0,87113.0,1.16826388]
[1742428924956,0.0001697,87135.0,87134.0,0.495101]
[1742428925166,0.0005826,87135.0,87134.0,0.752101]
[1742428926218,0.0005826,87135.0,87134.0,0.87167603]
[1742428926423,0.0005826,87135.0,87134.0,1.30241688]
[1742428926757,0.0005826,87135.0,87134.0,1.30141688]
[1742428927777,0.00024,87150.0,87146.0,0.011474]
[1742428928019,0.00024,87150.0,87149.0,0.495067]
[1742428928232,0.00036382,87150.0,87149.0,0.911267]
[1742428928439,0.00036382,87150.0,87149.0,1.04538288]
[1742428928657,0.00036382,87150.0,87149.0,1.06857405]
[1742428929074,0.00036382,87150.0,87149.0,0.93445817]
[1742428929747,0.01183782,87150.0,87149.0,0.85028]
[1742428929959,0.00036382,87150.0,87149.0,0.861754]
[1742428930160,0.00036382,87150.0,87149.0,0.85028]
[1742428930370,0.00036382,87150.0,87149.0,0.43408]
[1742428930780,0.00036382,87150.0,87149.0,0.14008]
[1742428931151,0.00036382,87150.0,87149.0,0.13412]
[1742428931359,0.00036382,87150.0,87149.0,0.14012]
[1742428931569,0.01183782,87150.0,87149.0,0.14608]
[1742428931769,0.00036382,87150.0,87149.0,0.14008]
[1742428931983,0.00036382,87150.0,87149.0,0.14608]
[1742428932787,0.00036382,87150.0,87149.0,0.14008]
[1742428933202,0.00036382,87150.0,87149.0,0.151554]
[1742428933399,0.00036382,87150.0,87147.0,0.183595]
[1742428933612,0.00036382,87150.0,87149.0,0.183593]
[1742428933818,0.00036382,87150.0,87149.0,0.189593]
[1742428934071,0.01183782,87150.0,87149.0,0.14]
[1742428934268,0.00036382,87150.0,87149.0,0.14]
[1742428934655,0.00036382,87150.0,87149.0,0.134]
[1742428934859,0.00036382,87150.0,87149.0,0.14]
[1742428935445,0.00036382,87150.0,87149.0,0.146]
[1742428936202,0.00053352,87150.0,87149.0,0.146]
[1742428937240,0.00053352,87150.0,87149.0,0.157474]
[1742428937799,0.00053352,87150.0,87149.0,0.146]
[1742428938028,0.00053352,87150.0,87149.0,0.012]
[1742428938232,0.01200752,87150.0,87149.0,0.012]
[1742428938654,0.00053352,87150.0,87149.0,0.012]
[1742428938866,0.011474,87148.0,87132.0,0.011476]
[1742428939074,0.011474,87148.0,87138.0,0.183614]
[1742428939283,0.183604,87144.0,87137.0,0.183617]
[1742428939515,0.195085,87142.0,87132.0,0.483629]
[1742428939726,0.011475,87139.0,87133.0,0.13388]
[1742428940140,0.011475,87141.0,87134.0,0.183625]
[1742428940343,0.195079,87144.0,87136.0,0.18362]
[1742428940538,0.01182545,87141.0,87136.0,0.18362]
[1742428940759,0.011475,87144.0,87136.0,0.18362]
[1742428941170,0.011475,87144.0,87133.0,0.006]
[1742428941171,0.011474,87146.0,87133.0,0.006]
[1742428941377,0.183604,87144.0,87132.0,0.328943]
[1742428941582,0.183604,87144.0,87138.0,0.183616]
[1742428941793,0.01170437,87144.0,87140.0,0.183611]
[1742428942001,0.011473,87157.0,87148.0,0.183594]
[1742428942209,0.0132201,87160.0,87148.0,0.183594]
[1742428942419,0.0121947,87153.0,87149.0,0.011474]
[1742428942761,0.0121947,87153.0,87149.0,0.091274]
[1742428942978,0.0132201,87160.0,87149.0,0.09242138]
[1742428944066,0.0132201,87160.0,87149.0,0.091274]
[1742428944272,0.0132201,87160.0,87149.0,0.0798]
[1742428944515,0.011473,87157.0,87149.0,0.006]
[1742428944720,0.195052,87156.0,87149.0,0.006]
[1742428944932,0.011473,87157.0,87149.0,0.006]
[1742428945152,5.2e-07,87150.0,87149.0,1.01191027]
[1742428945361,0.0132201,87160.0,87159.0,0.011473]
[1742428945582,0.0132201,87160.0,87159.0,0.628925]
[1742428946007,0.0132201,87160.0,87159.0,0.617452]
[1742428946449,0.0132201,87160.0,87159.0,0.628925]
[1742428947679,0.0132201,87160.0,87159.0,0.13976]
[1742428947924,0.0246931,87160.0,87159.0,0.13976]
[1742428948125,0.0246931,87160.0,87159.0,0.14576]
[1742428948334,0.0132201,87160.0,87159.0,0.329332]
[1742428948538,0.0132201,87160.0,87159.0,0.340805]
[1742428948743,0.0132201,87160.0,87159.0,0.323332]
[1742428949147,0.0132201,87160.0,87159.0,0.334805]
[1742428949774,0.0132201,87160.0,87159.0,0.207045]
[1742428949985,0.0132201,87160.0,87159.0,0.1458]
[1742428949986,0.0246931,87160.0,87159.0,0.1458]
[1742428950218,0.0132201,87160.0,87159.0,0.1458]
[1742428950422,0.01017965,87160.0,87159.0,0.334845]
[1742428950621,0.01017965,87160.0,87159.0,0.1398]
[1742428951359,0.01017965,87160.0,87159.0,0.1458]
[1742428951505,0.01008229,87160.0,87159.0,0.1398]
[1742428951909,0.02155529,87160.0,87159.0,0.1458]
[1742428952124,0.01838329,87160.0,87159.0,0.1458]
[1742428952309,0.01838329,87160.0,87159.0,0.1398]
[1742428952512,0.01838329,87160.0,87159.0,0.1338]
[1742428952721,0.01838329,87160.0,87159.0,0.1398]
[1742428952919,0.011472,87166.0,87159.0,0.1398]
[1742428952920,0.0001697,87185.0,87159.0,0.17297503]
[1742428953131,3.7e-07,87241.0,87240.0,0.183402]
[1742428953488,0.02379439,87269.0,87258.0,0.499824]
[1742428953690,0.02379439,87269.0,87258.0,0.524824]
[1742428953874,0.02379439,87269.0,87266.0,0.524806]
[1742428953875,0.00198005,87267.0,87266.0,0.524806]
[1742428954120,4.4e-07,87269.0,87268.0,0.05599885]
[1742428954320,0.01248,87293.0,87279.0,0.03]
[1742428954501,0.00045334,87280.0,87279.0,0.18648625]
[1742428954754,0.01191034,87280.0,87279.0,0.0061454]
[1742428954962,0.01191034,87280.0,87279.0,0.005]
[1742428955165,0.00045334,87280.0,87267.0,0.00114565]
[1742428955374,0.183357,87261.0,87260.0,0.00114582]
[1742428955583,0.18333,87274.0,87263.0,0.011459]
[1742428955787,0.18333,87274.0,87260.0,0.14112]
[1742428955788,0.011458,87271.0,87260.0,0.14112]
[1742428955999,0.011459,87261.0,87260.0,0.16612]
[1742428956209,0.011459,87261.0,87260.0,0.025]
[1742428956426,0.39147333,87290.0,87258.0,0.01799]
[1742428956427,0.011458,87268.0,87258.0,0.01799]
[1742428956634,0.0062723,87261.0,87260.0,0.33646]
[1742428956851,4.915e-05,87290.0,87279.0,0.036457]
[1742428957049,4.915e-05,87290.0,87279.0,0.660977]
[1742428958089,4.915e-05,87290.0,87279.0,0.025]
[1742428958090,0.18331,87284.0,87279.0,0.025]
[1742428958283,0.011459,87264.0,87260.0,0.009]
[1742428958486,0.011458,87272.0,87268.0,0.025]
[1742428958599,0.55799034,87280.0,87268.0,0.183343]
[1742428958801,0.011457,87276.0,87264.0,0.036459]
[1742428959010,0.194816,87261.0,87260.0,0.006]
[1742428959406,0.005,87299.0,87262.0,0.183354]
[1742428959609,0.00045334,87280.0,87279.0,0.025]
[1742428959810,0.00045334,87280.0,87279.0,0.031]
[1742428960223,0.00045334,87280.0,87279.0,0.025]
[1742428960424,0.00045334,87280.0,87268.0,0.152978]
[1742428960425,0.011457,87277.0,87276.0,0.025]
[1742428960701,0.011457,87277.0,87246.0,0.4162]
[1742428960702,0.194791,87273.0,87272.0,0.025]
[1742428960986,0.194814,87262.0,87261.0,0.025]
[1742428961187,0.01146,87258.0,87257.0,0.025]
[1742428961342,0.011459,87261.0,87260.0,0.025]
[1742428961690,0.011461,87249.0,87247.0,0.025]
[1742428961887,0.194844,87249.0,87248.0,0.025]
[1742428962384,0.194844,87249.0,87246.0,0.025]
[1742428962385,0.011461,87247.0,87246.0,0.025]
[1742428962585,0.011461,87252.0,87236.0,0.14132]
[1742428962586,0.194826,87258.0,87251.0,0.025]
[1742428962759,0.19483,87255.0,87251.0,0.025]
[1742428963255,0.01146,87253.0,87252.0,0.025]
[1742428963471,0.00041334,87258.0,87251.0,0.025]
[1742428963679,0.00041334,87258.0,87255.0,0.18337]
[1742428963888,0.00041334,87258.0,87256.0,0.025]
[1742428964090,0.00041334,87258.0,87255.0,0.025]
[1742428964292,0.00041334,87258.0,87257.0,0.03646]
[1742428964490,0.00041334,87258.0,87257.0,0.4775]
[1742428965346,0.011456,87285.0,87278.0,0.18332]
[1742428965547,0.183395,87286.0,87278.0,0.18332]
[1742428965548,0.00030437,87280.0,87279.0,0.34068652]
[1742428965747,0.00030437,87280.0,87279.0,0.35099785]
[1742428966123,0.00030437,87280.0,87279.0,0.47057288]
[1742428966527,0.00030437,87280.0,87279.0,0.90954657]
[1742428966907,0.00030437,87280.0,87279.0,0.89277288]
[1742428967346,0.00030437,87280.0,87279.0,1.03369288]
[1742428967513,0.00030437,87280.0,87279.0,1.02769288]
[1742428968125,3.7e-07,87286.0,87285.0,0.519763]
[1742428968320,0.194681,87322.0,87313.0,0.025]
[1742428968525,0.194681,87322.0,87309.0,0.183256]
[1742428968526,0.194688,87319.0,87314.0,0.025]
[1742428968737,0.011452,87318.0,87315.0,0.025]
[1742428968949,0.011452,87314.0,87313.0,0.025]
[1742428969580,0.183219,87327.0,87315.0,0.025]
[1742428969854,4e-05,87330.0,87321.0,0.036451]
[1742428970012,4e-05,87330.0,87321.0,0.025]
[1742428970229,4e-05,87330.0,87321.0,0.036451]
[1742428970458,4e-05,87330.0,87321.0,0.33759605]
[1742428970658,4e-05,87330.0,87321.0,0.336451]
[1742428971048,4e-05,87330.0,87321.0,0.47056688]
[1742428971249,4e-05,87330.0,87321.0,0.58557503]
[1742428971426,4e-05,87330.0,87321.0,0.472]
[1742428971662,4e-05,87330.0,87321.0,0.16604]
[1742428971863,4e-05,87330.0,87313.0,0.306]
[1742428971864,0.011453,87312.0,87311.0,0.034431]
[1742428971975,0.011452,87320.0,87316.0,0.025]
[1742428972175,0.00012498,87322.0,87321.0,0.031]
[1742428972404,0.00012498,87322.0,87321.0,0.042451]
[1742428972811,0.00012498,87322.0,87321.0,0.036451]
[1742428973228,0.00012498,87322.0,87321.0,0.47171186]
[1742428973386,0.00012498,87322.0,87321.0,0.47056688]
[1742428973592,0.00029438,87322.0,87321.0,0.46656]
[1742428973799,0.00029438,87322.0,87321.0,0.47256]
[1742428974007,0.18352338,87322.0,87321.0,0.306]
[1742428974238,0.00029438,87322.0,87321.0,0.342451]